fUST/lending_fUST_20241116
["ID","MTS","AMOUNT","RATE_DAILY","PERIOD"]
[342334318,1731742242836,-500.0,0.00013972,2]
[342334319,1731742242846,-500.0,0.00013972,2]
[342334320,1731742242855,-500.0,0.00013972,2]
[342334321,1731742242865,-500.0,0.00013972,2]
[342334322,1731742242874,-500.0,0.00013972,2]
[342334323,1731742242883,-500.0,0.00013972,2]
[342334324,1731742242892,-500.0,0.00013972,2]
[342334326,1731742242901,-500.0,0.00013972,2]
[342334328,1731742242911,-550.34,0.00013972,2]
[342334330,1731742242920,-180.29816824,0.00013972,2]
[342334332,1731742242929,-500.0,0.00013972,2]
[342334334,1731742242939,-500.0,0.00013972,2]
[342334335,1731742242949,-500.0,0.00013972,2]
[342334336,1731742242962,-588.8,0.00013972,2]
[342334337,1731742242971,-3015.95,0.00013972,2]
[342334339,1731742242981,-500.0,0.00013972,2]
[342334341,1731742242990,-500.0,0.00013972,2]
[342334343,1731742242999,-500.0,0.00013972,2]
[342334344,1731742243008,-500.0,0.00013972,2]
[342334345,1731742243128,-520.15858483,0.00013972,2]
[342334346,1731742243140,-500.0,0.00013972,2]
[342334347,1731742243150,-500.0,0.00013972,2]
[342334348,1731742243160,-500.0,0.00013972,2]
[342334349,1731742243169,-2336.0,0.00013972,2]
[342334350,1731742243179,-562.7519432,0.00013972,2]
[342334351,1731742243189,-1806.28,0.00013972,2]
[342334352,1731742243199,-188.48759047,0.00013972,2]
[342334353,1731742243214,-500.0,0.00013972,2]
[342334354,1731742243226,-509.02790491,0.00013972,2]
[342334355,1731742243239,-500.0,0.00013972,2]
[342334356,1731742243251,-1594.9,0.00013972,2]
[342334357,1731742243261,-505.44963375,0.00013972,2]
[342334358,1731742243272,-317.85171811,0.00013972,2]
[342334359,1731742243282,-500.0,0.00013972,2]
[342334360,1731742243292,-500.0,0.00013972,2]
[342334361,1731742243302,-167.62109541,0.00013972,2]
[342334362,1731742243312,-509.02627454,0.00013972,2]
[342334363,1731742243322,-500.0,0.00013972,2]
[342334364,1731742243332,-500.0,0.00013972,2]
[342334365,1731742243341,-563.24,0.00013972,2]
[342334366,1731742243350,-501.90422803,0.00013972,2]
[342334367,1731742243360,-408.7363826,0.00013972,2]
[342334368,1731742243369,-500.0,0.00013972,2]
[342334369,1731742243378,-500.0,0.00013972,2]
[342334370,1731742243387,-500.0,0.00013972,2]
[342334371,1731742243396,-500.0,0.00013972,2]
[342334372,1731742243406,-590.78,0.00013972,2]
[342334373,1731742243415,-500.0,0.00013972,2]
[342334374,1731742243424,-500.0,0.00013972,2]
[342334375,1731742243434,-402.22300306,0.00013972,2]
[342334376,1731742243443,-6512.06,0.00013972,2]
[342334377,1731742243452,-500.0,0.00013972,2]
[342334378,1731742243471,-500.0,0.00013972,2]
[342334379,1731742243481,-500.0,0.00013972,2]
[342334380,1731742243491,-1240.2,0.00013972,2]
[342334381,1731742243501,-974.33,0.00013972,2]
[342334382,1731742243510,-1340.61,0.00013972,2]
[342334383,1731742243519,-500.0,0.00013972,2]
[342334384,1731742243528,-958.04,0.00013972,2]
[342334385,1731742243538,-649.15031083,0.00013972,2]
[342334386,1731742243547,-500.0,0.00013972,2]
[342334387,1731742243556,-1174.16,0.00013972,2]
[342334388,1731742243566,-1165.5,0.00013972,2]
[342334389,1731742243575,-1526.92,0.00013972,2]
[342334390,1731742243585,-500.0,0.00013972,2]
[342334391,1731742243594,-1833.71,0.00013972,2]
[342334392,1731742243603,-226.01136185,0.00013972,2]
[342334393,1731742243612,-22897.32,0.00013972,2]
[342334394,1731742243621,-2967.15,0.00013972,2]
[342334395,1731742243630,-504.45004626,0.00013972,2]
[342334396,1731742243639,-1843.41,0.00013972,2]
[342334397,1731742243648,-500.0,0.00013972,2]
[342334398,1731742243658,-511.08099874,0.00013972,2]
[342334399,1731742243667,-500.0,0.00013972,2]
[342334400,1731742243676,-2458.73,0.00013972,2]
[342334401,1731742243686,-508.15302564,0.00013972,2]
[342334402,1731742243695,-500.0,0.00013972,2]
[342334403,1731742243705,-500.0,0.00013972,2]
[342334404,1731742243720,-500.0,0.00013972,2]
[342334405,1731742243729,-974.72,0.00013972,2]
[342334406,1731742243739,-514.22013248,0.00013972,2]
[342334407,1731742243748,-500.0,0.00013972,2]
[342334408,1731742243757,-1250.95,0.00013972,2]
[342334409,1731742243766,-1971.56,0.00013972,2]
[342334410,1731742243775,-500.0,0.00013972,2]
[342334411,1731742243785,-984.86,0.00013972,2]
[342334412,1731742243794,-154.71909628,0.00013972,2]
[342334413,1731742243804,-2537.8,0.00013972,2]
[342334414,1731742243813,-500.0,0.00013972,2]
[342334415,1731742243823,-500.0,0.00013972,2]
[342334416,1731742243833,-500.0,0.00013972,2]
[342334417,1731742243842,-2364.56,0.00013972,2]
[342334418,1731742243851,-520.81621825,0.00013972,2]
[342334419,1731742243860,-3087.31,0.00013972,2]
[342334420,1731742243870,-500.0,0.00013972,2]
[342334421,1731742243879,-500.0,0.00013972,2]
[342334422,1731742243888,-12183.9,0.00013972,2]
[342334423,1731742243897,-500.0,0.00013972,2]
[342334424,1731742243906,-5265.81,0.00013972,2]
[342334425,1731742243915,-638.63,0.00013972,2]
[342334426,1731742243924,-500.0,0.00013972,2]
[342334427,1731742243933,-207.83816465,0.00013972,2]
[342334428,1731742243942,-500.0,0.00013972,2]
[342334429,1731742243952,-760.79,0.00013972,2]
[342334430,1731742243964,-2218.31,0.00013972,2]
[342334431,1731742243973,-1939.28,0.00013972,2]
[342334432,1731742243982,-500.0,0.00013972,2]
[342334433,1731742243991,-400.0,0.00013973,2]
[342334434,1731742244000,-193.562461,0.00014064,2]
[342334435,1731742244009,-232.274953,0.00014064,2]
[342334436,1731742244020,-475.307224,0.00014064,2]
[342334437,1731742244029,-160.0,0.00014072,4]
[342334438,1731742244038,-184.462349,0.00014112,2]
[342334439,1731742244048,-552.579543,0.00014112,2]
[342334440,1731742244060,-172.354784,0.00014112,2]
[342334441,1731742244069,-393.917845,0.00014112,2]
[342334442,1731742244081,-2000.0,0.0001417,2]
[342334443,1731742244091,-500.0,0.00014173,2]
[342334444,1731742244101,-508.33352484,0.00014173,2]
[342334445,1731742244110,-500.0,0.00014173,2]
[342334446,1731742244119,-262.46210977,0.00014173,2]
[342334447,1731742244130,-500.0,0.00014173,2]
[342334448,1731742244139,-500.0,0.00014173,2]
[342334449,1731742244150,-500.0,0.00014173,2]
[342334450,1731742244162,-500.0,0.00014173,2]
[342334451,1731742244171,-514.95002504,0.00014173,2]
[342334452,1731742244181,-500.0,0.00014173,2]
[342334453,1731742244190,-500.7175239,0.00014173,2]
[342334454,1731742244199,-501.44979526,0.00014173,2]
[342334455,1731742244209,-160.96538587,0.00014173,2]
[342334456,1731742244221,-500.0,0.00014173,2]
[342334457,1731742244231,-500.0,0.00014173,2]
[342334458,1731742244240,-500.0,0.00014173,2]
[342334459,1731742244249,-500.0,0.00014173,2]
[342334460,1731742244258,-500.0,0.00014173,2]
[342334461,1731742244268,-500.0,0.00014173,2]
[342334462,1731742244278,-1059532.79846982,0.000142,2]
[342334463,1731742244297,-14635.47034899,0.000142,2]
[342334464,1731742244370,-18396.67769961,0.000142,2]
[342334465,1731742244382,-542.23344392,0.000142,2]
[342334466,1731742244495,-1204.38880029,0.000142,2]
[342334467,1731742244507,-9149.45660754,0.000142,2]
[342334468,1731742244519,-619.46465689,0.000142,2]
[342334469,1731742244530,-3518.6338108,0.000142,2]
[342334482,1731742280036,423.27,0.00010959,2]
[342334606,1731743432504,-412.60757393,0.00012307,2]
[342334608,1731743432517,-410.59100478,0.00012307,2]
[342334610,1731743432529,-1271.92958567,0.00012307,2]
[342334615,1731743432568,-770.87183562,0.00012307,2]
[342334617,1731743432577,-500.0,0.00012639,2]
[342334619,1731743432587,-89.41791164,0.0001274,2]
[342334648,1731743438675,-89.96808836,0.0001274,2]
[342334650,1731743438685,-397.97623448,0.00013,2]
[342334653,1731743438695,-123912.05567776,0.00013,2]
[342334698,1731743440670,-4097.51449374,0.00013,2]
[342334699,1731743440682,-954.834516,0.00013,2]
[342334742,1731743443964,-9567.43915636,0.00013,2]
[342334917,1731743450624,396.88,0.00010959,2]
[342334958,1731743652694,-17265.0565964,0.00014942,10]
[342334959,1731743652759,-82734.9434036,0.0001899,10]
[342334961,1731743718579,360.01,0.00010959,2]
[342334962,1731743729115,818.21,0.00010959,2]
[342334963,1731743782234,-300.0,0.00012999,2]
[342334964,1731743782257,-300.0,0.00012999,2]
[342334965,1731743782279,-265.31748965,0.00013,2]
[342334966,1731743782303,-170445.68251035,0.00013,2]
[342335001,1731744632779,-396.69385955,0.0001206,2]
[342335002,1731744632832,-289.57350705,0.0001206,2]
[342335003,1731744632845,-1282.86593129,0.00012729,2]
[342335026,1731744638746,-1002.76985642,0.00012729,2]
[342335028,1731744638757,-179.38653633,0.0001274,2]
[342335030,1731744638766,-5220.04360723,0.00012856,2]
[342335039,1731744638852,-354.8577584,0.00012856,2]
[342335041,1731744638865,-300.0,0.00012899,2]
[342335044,1731744638876,-300.0,0.00012899,2]
[342335046,1731744638886,-4983.5083246,0.000129,2]
[342335054,1731744638958,-257.09,0.000129,2]
[342335056,1731744638970,-230.61320068,0.000129,2]
[342335058,1731744638980,-88.62667022,0.00012954,2]
[342335079,1731744639343,-115.71461763,0.00012954,2]
[342335080,1731744639353,-254.69041989,0.00013,2]
[342335207,1731744643654,-167.31304622,0.00013,2]
[342335208,1731744643663,-13558.11299087,0.00013,2]
[342335209,1731744643712,-5030.78680077,0.00013,2]
[342335215,1731744649269,10000.0,0.00015,90]
[342335216,1731744664262,210.04,0.00010959,2]
[342335217,1731744717910,10000.0,0.00018,60]
[342335218,1731744767256,161.58,0.00010959,2]
[342335219,1731744777877,807.94,0.00010959,2]
[342335223,1731744805246,10000.0,0.0002,60]
[342335224,1731744885027,10000.0,0.00024,60]
[342335226,1731744934857,18830.0,0.00024,60]
[342335227,1731745063548,-916.6877495,0.00011266,2]
[342335228,1731745063569,-230.60177222,0.00011951,2]
[342335229,1731745063590,-194.81683115,0.00011961,2]
[342335230,1731745063612,-300.0,0.00012051,2]
[342335231,1731745063633,-300.0,0.00012051,2]
[342335232,1731745063654,-4848.89364713,0.00012052,2]
[342335234,1731745176214,1000.0,0.00026,60]
[342335235,1731745265718,257.11311131,0.00011054,2]
[342335236,1731745280953,257.11311131,0.00011054,2]
[342335237,1731745296160,257.11311131,0.00011054,2]
[342335238,1731745311332,257.11311131,0.00011054,2]
[342335239,1731745327218,257.11311131,0.00011054,2]
[342335240,1731745342386,257.11311131,0.00011054,2]
[342335241,1731745357667,257.11311131,0.00011054,2]
[342335242,1731745373077,181.35065351,0.00011054,2]
[342335243,1731745474234,3000.0,0.00010952,2]
[342335244,1731745487670,20698.9473019,0.00010952,2]
[342335245,1731745545028,33028.4706942,0.00010817,2]
[342335367,1731745722403,27824.98157482,0.00021,60]
[342335420,1731745831943,-300.0,0.00011082,2]
[342335422,1731745831953,-300.0,0.00011082,2]
[342335424,1731745831962,-161.4574547,0.00011083,2]
[342335426,1731745831972,-2000.0,0.00011083,4]
[342335428,1731745831981,-2000.0,0.00011083,4]
[342335430,1731745831990,-2000.0,0.00011083,4]
[342335432,1731745831999,-2000.0,0.00011083,4]
[342335435,1731745832008,-2000.0,0.00011083,4]
[342335437,1731745832018,-2000.0,0.00011083,4]
[342335439,1731745832027,-2000.0,0.00011083,4]
[342335441,1731745832036,-257.11311131,0.00011166,2]
[342335443,1731745832045,-1098.9506276,0.00011313,2]
[342335445,1731745832054,-250.0,0.00011425,2]
[342335447,1731745832063,-420.0,0.00012177,2]
[342335449,1731745832072,-420.0,0.00012191,2]
[342335451,1731745832081,-8618.1791657,0.00012829,2]
[342335453,1731745832090,-2920.29494886,0.00012999,2]
[342335454,1731745832101,-630.71703892,0.00013,2]
[342335455,1731745832110,-328778.99966402,0.00013,2]
[342335456,1731745832122,-2064.5055936,0.00013,2]
[342335457,1731745832133,-466.0,0.00013,2]
[342335486,1731745841944,-3216.03604392,0.00013,2]
[342335487,1731745842000,-28266.38364669,0.00013,2]
[342335512,1731745842915,-1077.16966347,0.00013,2]
[342335546,1731745845921,-48503.02838145,0.00013,2]
[342335557,1731746593268,3410.855246,0.000136,30]
[342335685,1731747034731,-359.0618134,0.00012207,2]
[342335686,1731747034743,-635.02191313,0.00012718,2]
[342335687,1731747034756,-477.58602924,0.00012718,2]
[342335721,1731747038248,-6910.89077952,0.00012718,2]
[342335805,1731747040013,-596.22167358,0.00012718,2]
[342335806,1731747040023,-75.55769477,0.00012739,2]
[342335807,1731747040036,-183.48430523,0.00012739,2]
[342335808,1731747040046,-246.10508814,0.00012799,2]
[342335809,1731747040055,-63.93530605,0.00012897,2]
[342335810,1731747040075,-236.06469395,0.00012897,2]
[342335811,1731747040084,-300.0,0.00012898,2]
[342335812,1731747040093,-1599.55536918,0.00012899,2]
[342335813,1731747040105,-670.700004,0.00012899,2]
[342335814,1731747040116,-286.30271832,0.00012899,2]
[342335815,1731747040127,-313.82365735,0.000129,2]
[342335821,1731747043111,-1632.39130102,0.000129,2]
[342335822,1731747043121,-501.41789002,0.00012973,2]
[342335823,1731747043131,-326.7714828,0.00012973,2]
[342335824,1731747043141,-310.61980657,0.00012973,2]
[342335825,1731747043151,-500.0,0.00012973,2]
[342335826,1731747043161,-588.66035476,0.00012973,2]
[342335827,1731747043173,-201.91151111,0.00012973,2]
[342335828,1731747043183,-500.0,0.00012973,2]
[342335829,1731747043193,-500.22012842,0.00012973,2]
[342335831,1731747043203,-417.46077286,0.00012973,2]
[342335832,1731747043213,-500.0,0.00012973,2]
[342335833,1731747043222,-201.91057334,0.00012973,2]
[342335834,1731747043232,-500.98790361,0.00012973,2]
[342335835,1731747043242,-500.18774936,0.00012973,2]
[342335836,1731747043251,-500.74073036,0.00012973,2]
[342335837,1731747043260,-200.65851638,0.00012973,2]
[342335838,1731747043269,-500.92778353,0.00012973,2]
[342335839,1731747043279,-500.0,0.00012973,2]
[342335840,1731747043288,-500.0,0.00012973,2]
[342335841,1731747043297,-500.0,0.00012973,2]
[342335842,1731747043307,-500.0,0.00012973,2]
[342335843,1731747043316,-500.0,0.00012973,2]
[342335844,1731747043325,-500.0,0.00012973,2]
[342335845,1731747043334,-500.0,0.00012973,2]
[342335846,1731747043344,-501.49891268,0.00012973,2]
[342335847,1731747043353,-506.95754395,0.00012973,2]
[342335848,1731747043363,-420.47802595,0.00012999,2]
[342335849,1731747043372,-2449325.28,0.00012999,2]
[342335850,1731747043383,-685298.990861,0.00013,2]
[342335851,1731747043392,-150.112233,0.00013,2]
[342335852,1731747043402,-151.086,0.00013129,2]
[342335853,1731747043411,-534.907,0.00013129,2]
[342335854,1731747043422,-1112.0,0.00013129,2]
[342335855,1731747043432,-2386.0,0.00013129,2]
[342335856,1731747043441,-150.269,0.00013129,2]
[342335857,1731747043450,-1829.417,0.00013129,2]
[342335858,1731747043460,-150.256,0.00013129,2]
[342335859,1731747043469,-150.608,0.00013129,2]
[342335860,1731747043478,-1771.27532004,0.00013426,2]
[342335861,1731747043488,-171.521837,0.00013511,2]
[342335862,1731747043497,-1958.882051,0.00013511,2]
[342335863,1731747043507,-1224.321091,0.00013511,2]
[342335864,1731747043516,-2220.741676,0.00013511,2]
[342335865,1731747043525,-171.792934,0.00013511,2]
[342335866,1731747043534,-2078.272787,0.00013511,2]
[342335867,1731747043544,-827.12052983,0.00013521,2]
[342335868,1731747043553,-1012.95382663,0.00013521,2]
[342335869,1731747043563,-503.24612169,0.00013521,2]
[342335870,1731747043572,-711.62708855,0.00013521,2]
[342335871,1731747043581,-718.27556139,0.00013521,2]
[342335872,1731747043591,-1000.0,0.00013521,2]
[342335873,1731747043600,-1000.0,0.00013521,2]
[342335874,1731747043610,-500.0,0.00013521,2]
[342335875,1731747043619,-1000.0,0.00013521,2]
[342335876,1731747043629,-150.330924,0.000136,2]
[342335877,1731747043638,-213.05790296,0.00013673,2]
[342335878,1731747043647,-1958.882051,0.0001368,2]
[342335879,1731747043657,-1224.321091,0.0001368,2]
[342335880,1731747043673,-2220.741676,0.0001368,2]
[342335881,1731747043683,-2078.272787,0.0001368,2]
[342335882,1731747043692,-3200.0,0.00013697,2]
[342335883,1731747043701,-151.0,0.00013697,2]
[342335884,1731747043713,-500.0,0.00013697,2]
[342335885,1731747043722,-437.72414193,0.00013698,2]
[342335886,1731747043731,-500.0,0.00013698,2]
[342335887,1731747043740,-651.31941065,0.00013698,2]
[342335888,1731747043751,-467.8278738,0.00013698,2]
[342335889,1731747043761,-500.0,0.00013698,2]
[342335890,1731747043770,-500.0,0.00013698,2]
[342335891,1731747043780,-500.0,0.00013698,2]
[342335892,1731747043789,-500.0,0.00013698,2]
[342335893,1731747043799,-157.91152016,0.00013698,2]
[342335894,1731747043809,-500.0,0.00013698,2]
[342335895,1731747043819,-500.0,0.00013698,2]
[342335896,1731747043828,-337.68299112,0.00013698,2]
[342335897,1731747043838,-500.0,0.00013698,2]
[342335898,1731747043848,-500.0,0.00013698,2]
[342335899,1731747043857,-500.0,0.00013698,2]
[342335900,1731747043866,-500.0,0.00013698,2]
[342335901,1731747043876,-500.0,0.00013698,2]
[342335902,1731747043886,-500.0,0.00013698,2]
[342335903,1731747043896,-500.0,0.00013698,2]
[342335904,1731747043905,-500.0,0.00013698,2]
[342335905,1731747043915,-500.0,0.00013698,2]
[342335906,1731747043926,-500.0,0.00013698,2]
[342335907,1731747043940,-500.0,0.00013698,2]
[342335908,1731747043949,-500.0,0.00013698,2]
[342335909,1731747043958,-500.0,0.00013698,2]
[342335910,1731747043967,-500.0,0.00013698,2]
[342335911,1731747043978,-650.0,0.00013698,2]
[342335912,1731747043989,-500.0,0.00013698,2]
[342335913,1731747043998,-500.0,0.00013698,2]
[342335914,1731747044008,-500.0,0.00013698,2]
[342335915,1731747044017,-500.0,0.00013698,2]
[342335916,1731747044026,-500.0,0.00013698,2]
[342335917,1731747044036,-500.0,0.00013698,2]
[342335918,1731747044045,-500.0,0.00013698,2]
[342335919,1731747044055,-500.0,0.00013698,2]
[342335920,1731747044064,-500.0,0.00013698,2]
[342335921,1731747044074,-429.20308462,0.00013698,2]
[342335922,1731747044083,-500.0,0.00013698,2]
[342335923,1731747044092,-500.0,0.00013698,2]
[342335924,1731747044102,-500.0,0.00013698,2]
[342335925,1731747044111,-500.0,0.00013698,2]
[342335926,1731747044120,-500.0,0.00013698,2]
[342335927,1731747044130,-500.0,0.00013698,2]
[342335928,1731747044140,-500.0,0.00013698,2]
[342335929,1731747044150,-500.0,0.00013698,2]
[342335930,1731747044159,-500.0,0.00013698,2]
[342335931,1731747044169,-500.0,0.00013698,2]
[342335932,1731747044180,-500.0,0.00013698,2]
[342335933,1731747044189,-500.0,0.00013698,2]
[342335934,1731747044199,-500.0,0.00013698,2]
[342335935,1731747044208,-500.0,0.00013698,2]
[342335936,1731747044218,-500.0,0.00013698,2]
[342335937,1731747044227,-500.0,0.00013698,2]
[342335938,1731747044237,-500.0,0.00013698,2]
[342335939,1731747044246,-311.22998511,0.00013698,2]
[342335940,1731747044255,-500.0,0.00013698,2]
[342335941,1731747044265,-500.0,0.00013698,2]
[342335942,1731747044274,-500.0,0.00013698,2]
[342335943,1731747044283,-500.0,0.00013698,2]
[342335944,1731747044292,-500.0,0.00013698,2]
[342335945,1731747044302,-500.0,0.00013698,2]
[342335946,1731747044312,-500.0,0.00013698,2]
[342335947,1731747044321,-500.0,0.00013698,2]
[342335948,1731747044330,-500.0,0.00013698,2]
[342335949,1731747044340,-500.0,0.00013698,2]
[342335950,1731747044351,-500.0,0.00013698,2]
[342335951,1731747044361,-500.0,0.00013698,2]
[342335952,1731747044372,-500.0,0.00013698,2]
[342335953,1731747044382,-500.0,0.00013698,2]
[342335954,1731747044393,-500.0,0.00013698,2]
[342335955,1731747044402,-500.0,0.00013698,2]
[342335956,1731747044412,-500.0,0.00013698,2]
[342335957,1731747044423,-500.0,0.00013698,2]
[342335958,1731747044433,-500.0,0.00013698,2]
[342335959,1731747044442,-500.0,0.00013698,2]
[342335960,1731747044451,-500.0,0.00013698,2]
[342335961,1731747044461,-500.0,0.00013698,2]
[342335962,1731747044470,-500.0,0.00013698,2]
[342335963,1731747044479,-500.0,0.00013698,2]
[342335964,1731747044489,-500.0,0.00013698,2]
[342335965,1731747044498,-500.0,0.00013698,2]
[342335966,1731747044508,-500.0,0.00013698,2]
[342335967,1731747044517,-500.0,0.00013698,2]
[342335968,1731747044527,-500.0,0.00013698,2]
[342335969,1731747044536,-500.0,0.00013698,2]
[342335970,1731747044545,-500.0,0.00013698,2]
[342335971,1731747044554,-500.0,0.00013698,2]
[342335972,1731747044563,-500.0,0.00013698,2]
[342335973,1731747044572,-500.0,0.00013698,2]
[342335974,1731747044581,-500.0,0.00013698,2]
[342335975,1731747044591,-500.0,0.00013698,2]
[342335976,1731747044600,-500.0,0.00013698,2]
[342335977,1731747044609,-500.0,0.00013698,2]
[342335978,1731747044619,-311.22998511,0.00013698,2]
[342335979,1731747044628,-500.0,0.00013698,2]
[342335980,1731747044637,-500.0,0.00013698,2]
[342335981,1731747044646,-500.0,0.00013698,2]
[342335982,1731747044657,-500.0,0.00013698,2]
[342335983,1731747044668,-500.0,0.00013698,2]
[342335984,1731747044679,-500.0,0.00013698,2]
[342335985,1731747044688,-500.0,0.00013698,2]
[342335986,1731747044697,-181.82206397,0.00013698,2]
[342335987,1731747044707,-294.6584236,0.00013698,2]
[342335988,1731747044718,-500.0,0.00013698,2]
[342335989,1731747044727,-500.0,0.00013698,2]
[342335990,1731747044737,-500.0,0.00013698,2]
[342335991,1731747044748,-502.52891627,0.00013698,2]
[342335992,1731747044758,-500.0,0.00013698,2]
[342335993,1731747044767,-532.19283902,0.00013698,2]
[342335994,1731747044777,-500.0,0.00013698,2]
[342335995,1731747044786,-500.62359123,0.00013698,2]
[342335996,1731747044795,-500.0,0.00013698,2]
[342335997,1731747044804,-574.1623064,0.00013698,2]
[342335998,1731747044814,-500.0,0.00013698,2]
[342335999,1731747044824,-575.44563746,0.00013698,2]
[342336000,1731747044833,-500.0,0.00013698,2]
[342336001,1731747044843,-500.0,0.00013698,2]
[342336002,1731747044853,-500.0,0.00013698,2]
[342336003,1731747044862,-538.92736254,0.00013698,2]
[342336004,1731747044872,-500.0,0.00013698,2]
[342336005,1731747044883,-500.0,0.00013698,2]
[342336006,1731747044893,-502.1318166,0.00013698,2]
[342336007,1731747044903,-505.8220105,0.00013698,2]
[342336008,1731747044913,-500.0,0.00013698,2]
[342336009,1731747044923,-500.0,0.00013698,2]
[342336010,1731747044934,-500.0,0.00013698,2]
[342336011,1731747044943,-546.95884808,0.00013698,2]
[342336012,1731747045069,-500.0,0.00013698,2]
[342336013,1731747045080,-500.0,0.00013698,2]
[342336014,1731747045089,-500.0,0.00013698,2]
[342336015,1731747045099,-500.0,0.00013698,2]
[342336016,1731747045109,-540.75507523,0.00013698,2]
[342336017,1731747045118,-500.0,0.00013698,2]
[342336018,1731747045128,-500.0,0.00013698,2]
[342336019,1731747045138,-500.0,0.00013698,2]
[342336020,1731747045147,-500.0,0.00013698,2]
[342336021,1731747045157,-500.0,0.00013698,2]
[342336022,1731747045167,-500.0,0.00013698,2]
[342336023,1731747045178,-500.0,0.00013698,2]
[342336024,1731747045187,-500.0,0.00013698,2]
[342336025,1731747045197,-500.0,0.00013698,2]
[342336026,1731747045207,-500.0,0.00013698,2]
[342336027,1731747045216,-500.0,0.00013698,2]
[342336028,1731747045227,-500.0,0.00013698,2]
[342336029,1731747045237,-500.0,0.00013698,2]
[342336030,1731747045246,-496.6225509,0.00013698,2]
[342336031,1731747045256,-500.0,0.00013698,2]
[342336032,1731747045266,-500.0,0.00013698,2]
[342336033,1731747045276,-500.0,0.00013698,2]
[342336034,1731747045285,-500.0,0.00013698,2]
[342336035,1731747045296,-506.62946758,0.00013698,2]
[342336036,1731747045305,-500.0,0.00013698,2]
[342336037,1731747045315,-500.0,0.00013698,2]
[342336038,1731747045325,-500.0,0.00013698,2]
[342336039,1731747045335,-500.0,0.00013698,2]
[342336040,1731747045345,-500.0,0.00013698,2]
[342336041,1731747045355,-500.0,0.00013698,2]
[342336042,1731747045365,-500.0,0.00013698,2]
[342336043,1731747045375,-500.0,0.00013698,2]
[342336044,1731747045385,-500.0,0.00013698,2]
[342336045,1731747045395,-500.0,0.00013698,2]
[342336046,1731747045405,-500.0,0.00013698,2]
[342336047,1731747045415,-500.0,0.00013698,2]
[342336048,1731747045426,-500.0,0.00013698,2]
[342336049,1731747045436,-500.0,0.00013698,2]
[342336050,1731747045446,-500.0,0.00013698,2]
[342336051,1731747045455,-500.0,0.00013698,2]
[342336052,1731747045465,-500.0,0.00013698,2]
[342336053,1731747045474,-500.0,0.00013698,2]
[342336055,1731747045483,-500.0,0.00013698,2]
[342336056,1731747045493,-500.0,0.00013698,2]
[342336057,1731747045502,-344.41209048,0.00013698,2]
[342336058,1731747045511,-500.0,0.00013698,2]
[342336059,1731747045521,-500.0,0.00013698,2]
[342336060,1731747045530,-500.0,0.00013698,2]
[342336061,1731747045539,-500.0,0.00013698,2]
[342336062,1731747045549,-500.0,0.00013698,2]
[342336063,1731747045559,-1000.0,0.00013698,2]
[342336065,1731747045568,-500.0,0.00013698,2]
[342336067,1731747045578,-500.0,0.00013698,2]
[342336069,1731747045587,-500.0,0.00013698,2]
[342336071,1731747045596,-500.0,0.00013698,2]
[342336073,1731747045606,-500.0,0.00013698,2]
[342336074,1731747045615,-500.0,0.00013698,2]
[342336075,1731747045624,-500.0,0.00013698,2]